fUST/lending_fUST_20241217
["ID","MTS","AMOUNT","RATE_DAILY","PERIOD"]
[345690786,1734425437959,-173.37673417,0.00024657,6]
[345690787,1734425437968,-500.0,0.00024657,6]
[345690798,1734425437977,-1514.93,0.00024657,6]
[345690801,1734425438108,-500.0,0.00024657,6]
[345690803,1734425438118,-500.0,0.00024657,6]
[345690805,1734425438128,-500.0,0.00024657,6]
[345690807,1734425438140,-500.0,0.00024657,6]
[345690809,1734425438151,-500.0,0.00024657,6]
[345690810,1734425438161,-721.4,0.00024657,6]
[345690811,1734425438170,-502.84784868,0.00024657,6]
[345690812,1734425438180,-500.0,0.00024657,6]
[345690813,1734425438190,-500.0,0.00024657,6]
[345690814,1734425438199,-151.0,0.00024657,7]
[345690815,1734425438209,-500.0,0.00024657,6]
[345690816,1734425438218,-151.0,0.00024657,7]
[345690817,1734425438227,-500.0,0.00024657,6]
[345690818,1734425438236,-500.0,0.00024657,6]
[345690819,1734425438245,-500.0,0.00024657,6]
[345690820,1734425438254,-500.0,0.00024657,6]
[345690821,1734425438263,-503.21840722,0.00024657,6]
[345690822,1734425438273,-500.0,0.00024657,6]
[345690823,1734425438282,-567.21565762,0.00024657,6]
[345690824,1734425438292,-504.55326333,0.00024657,6]
[345690825,1734425438301,-759.68,0.00024657,6]
[345690826,1734425438310,-500.0,0.00024657,6]
[345690827,1734425438320,-501.9505494,0.00024657,6]
[345690828,1734425438330,-500.0,0.00024657,6]
[345690829,1734425438339,-2476.05,0.00024657,6]
[345690830,1734425438349,-274.17388332,0.00024657,2]
[345690831,1734425438358,-500.0,0.00024657,6]
[345690832,1734425438368,-502.65,0.00024657,6]
[345690833,1734425438377,-500.0,0.00024657,6]
[345690834,1734425438388,-511.72411534,0.00024657,6]
[345690835,1734425438397,-500.0,0.00024657,6]
[345690836,1734425438406,-585.84,0.00024657,6]
[345690837,1734425438414,-503.07592958,0.00024657,6]
[345690838,1734425438423,-500.0,0.00024657,6]
[345690839,1734425438433,-500.0,0.00024657,6]
[345690840,1734425438443,-993.19,0.00024657,2]
[345690841,1734425438453,-514.41,0.00024657,6]
[345690842,1734425438462,-500.0,0.00024657,6]
[345690843,1734425438472,-500.0,0.00024657,6]
[345690844,1734425438482,-500.0,0.00024657,6]
[345690845,1734425438492,-500.0,0.00024657,6]
[345690846,1734425438502,-500.0,0.00024657,6]
[345690847,1734425438512,-733.045955,0.00024657,7]
[345690848,1734425438521,-733.045955,0.00024657,7]
[345690849,1734425438530,-637.23,0.00024657,6]
[345690850,1734425438539,-332.980478,0.00024657,7]
[345690851,1734425438549,-500.0,0.00024657,6]
[345690852,1734425438558,-332.980478,0.00024657,7]
[345690853,1734425438567,-733.045955,0.00024657,7]
[345690854,1734425438577,-733.045955,0.00024657,7]
[345690855,1734425438586,-500.0,0.00024657,6]
[345690856,1734425438595,-10000.0,0.00024657,2]
[345690857,1734425438605,-500.0,0.00024657,6]
[345690858,1734425438616,-500.0,0.00024657,6]
[345690859,1734425438627,-508.65872842,0.00024657,6]
[345690860,1734425438637,-500.0,0.00024657,6]
[345690861,1734425438647,-500.0,0.00024657,6]
[345690862,1734425438657,-500.0,0.00024657,6]
[345690863,1734425438668,-559.689179,0.00024657,6]
[345690864,1734425438678,-500.0,0.00024657,6]
[345690865,1734425438687,-500.0,0.00024657,6]
[345690866,1734425438698,-415.72067583,0.00024657,2]
[345690867,1734425438708,-881.35,0.00024657,6]
[345690868,1734425438718,-500.0,0.00024657,6]
[345690869,1734425438727,-500.0,0.00024657,6]
[345690870,1734425438738,-208.099156,0.00024657,7]
[345690871,1734425438747,-500.0,0.00024657,6]
[345690872,1734425438757,-208.099156,0.00024657,7]
[345690873,1734425438766,-501.8143603,0.00024657,6]
[345690874,1734425438776,-428.72232363,0.00024657,6]
[345690875,1734425438785,-619.38,0.00024657,6]
[345690876,1734425438795,-500.0,0.00024657,6]
[345690877,1734425438804,-500.0,0.00024657,6]
[345690878,1734425438813,-208.099156,0.00024657,7]
[345690879,1734425438823,-208.099156,0.00024657,7]
[345690880,1734425438832,-3897.217211,0.00024657,7]
[345690881,1734425438841,-607.79,0.00024657,6]
[345690882,1734425438851,-843.07,0.00024657,6]
[345690883,1734425438860,-607.79,0.00024657,6]
[345690884,1734425438869,-3897.217211,0.00024657,7]
[345690885,1734425438879,-607.79,0.00024657,6]
[345690886,1734425438890,-607.79,0.00024657,6]
[345690887,1734425438899,-607.79,0.00024657,6]
[345690888,1734425438908,-607.79,0.00024657,6]
[345690889,1734425438918,-151.0,0.00024657,7]
[345690890,1734425438927,-607.79,0.00024657,6]
[345690891,1734425438936,-151.0,0.00024657,7]
[345690892,1734425438946,-607.79,0.00024657,6]
[345690893,1734425438955,-500.0,0.00024657,6]
[345690894,1734425438964,-292.192511,0.00024657,7]
[345690895,1734425438973,-607.79,0.00024657,6]
[345690896,1734425438983,-607.79,0.00024657,6]
[345690897,1734425438992,-607.79,0.00024657,6]
[345690898,1734425439001,-607.79,0.00024657,6]
[345690899,1734425439014,-500.0,0.00024657,6]
[345690900,1734425439024,-500.0,0.00024657,6]
[345690901,1734425439033,-607.79,0.00024657,6]
[345690902,1734425439043,-3897.217211,0.00024657,7]
[345690903,1734425439052,-607.79,0.00024657,6]
[345690904,1734425439061,-3897.217211,0.00024657,7]
[345690905,1734425439071,-607.79,0.00024657,6]
[345690906,1734425439080,-607.79,0.00024657,6]
[345690907,1734425439090,-607.79,0.00024657,6]
[345690908,1734425439099,-500.0,0.00024657,6]
[345690909,1734425439108,-607.79,0.00024657,6]
[345690910,1734425439118,-1099.929585,0.00024657,7]
[345690911,1734425439127,-607.79,0.00024657,6]
[345690912,1734425439137,-607.79,0.00024657,6]
[345690913,1734425439147,-1099.929585,0.00024657,7]
[345690914,1734425439157,-607.79,0.00024657,6]
[345690915,1734425439166,-709.2,0.00024657,6]
[345690916,1734425439175,-607.79,0.00024657,6]
[345690917,1734425439184,-506.58594049,0.00024657,6]
[345690918,1734425439194,-607.79,0.00024657,6]
[345690919,1734425439203,-607.95400878,0.00024657,6]
[345690920,1734425439212,-500.0,0.00024657,6]
[345690921,1734425439222,-586.22676258,0.00024657,6]
[345690922,1734425439231,-500.0,0.00024657,6]
[345690923,1734425439241,-500.0,0.00024657,6]
[345690924,1734425439251,-1099.929585,0.00024657,7]
[345690925,1734425439262,-1099.929585,0.00024657,7]
[345690926,1734425439271,-505.4276399,0.00024657,6]
[345690927,1734425439282,-500.0,0.00024657,6]
[345690928,1734425439291,-2676.8,0.00024657,6]
[345690929,1734425439302,-500.0,0.00024657,6]
[345690930,1734425439312,-500.0,0.00024657,6]
[345690931,1734425439322,-500.0,0.00024657,6]
[345690932,1734425439332,-2137.81,0.00024657,6]
[345690933,1734425439342,-500.0,0.00024657,6]
[345690934,1734425439352,-604.8968712,0.00024657,6]
[345690935,1734425439362,-500.0,0.00024657,6]
[345690936,1734425439371,-511.28160381,0.00024657,6]
[345690937,1734425439381,-500.0,0.00024657,6]
[345690938,1734425439396,-500.0,0.00024657,6]
[345690939,1734425439427,-500.0,0.00024657,6]
[345690940,1734425439439,-500.0,0.00024657,6]
[345690941,1734425439447,-500.0,0.00024657,6]
[345690942,1734425439457,-500.0,0.00024657,6]
[345690943,1734425439467,-3558.12,0.00024657,6]
[345690944,1734425439476,-500.0,0.00024657,6]
[345690945,1734425439485,-500.0,0.00024657,6]
[345690946,1734425439494,-500.0,0.00024657,6]
[345690947,1734425439504,-502.82085765,0.00024657,6]
[345690948,1734425439514,-500.0,0.00024657,6]
[345690949,1734425439523,-500.0,0.00024657,6]
[345690950,1734425439532,-500.0,0.00024657,6]
[345690951,1734425439542,-240.4756734,0.00024657,6]
[345690952,1734425439552,-507.52,0.00024657,6]
[345690953,1734425439562,-500.0,0.00024657,6]
[345690954,1734425439571,-488.02530903,0.00024657,6]
[345690955,1734425439581,-500.0,0.00024657,6]
[345690956,1734425439591,-512.18461158,0.00024657,6]
[345690957,1734425439600,-409.7477216,0.00024657,6]
[345690958,1734425439610,-500.0,0.00024657,6]
[345690959,1734425439621,-500.0,0.00024657,6]
[345690960,1734425439632,-151.0,0.00024657,7]
[345690961,1734425439643,-575.79,0.00024657,6]
[345690962,1734425439653,-151.0,0.00024657,7]
[345690963,1734425439663,-2583.97,0.00024657,6]
[345690964,1734425439673,-500.0,0.00024657,6]
[345690965,1734425439682,-500.0,0.00024657,6]
[345690966,1734425439692,-500.0,0.00024657,6]
[345690967,1734425439702,-500.0,0.00024657,6]
[345690968,1734425439712,-2014.3,0.00024657,6]
[345690969,1734425439722,-500.0,0.00024657,6]
[345690970,1734425439732,-151.0,0.00024657,7]
[345690971,1734425439741,-151.0,0.00024657,7]
[345690972,1734425439751,-500.0,0.00024657,6]
[345690973,1734425439760,-500.0,0.00024657,6]
[345690974,1734425439770,-500.0,0.00024657,6]
[345690975,1734425439779,-381.03526049,0.00024657,6]
[345690976,1734425439789,-500.0,0.00024657,6]
[345690977,1734425439799,-500.0,0.00024657,6]
[345690978,1734425439809,-500.0,0.00024657,6]
[345690979,1734425439819,-151.0,0.00024657,7]
[345690980,1734425439830,-151.0,0.00024657,7]
[345690981,1734425439839,-500.0,0.00024657,6]
[345690982,1734425439849,-2930.53,0.00024657,6]
[345690983,1734425439860,-1269.94,0.00024657,6]
[345690984,1734425439871,-500.0,0.00024657,6]
[345690985,1734425439884,-500.0,0.00024657,6]
[345690986,1734425439895,-475.90255329,0.00024657,6]
[345690987,1734425439905,-681.759088,0.00024657,7]
[345690988,1734425439915,-1348.48,0.00024657,6]
[345690989,1734425439925,-681.759088,0.00024657,7]
[345690990,1734425439935,-500.0,0.00024657,6]
[345690991,1734425439946,-681.759088,0.00024657,7]
[345690993,1734425439956,-151.0,0.00024657,7]
[345690995,1734425439966,-151.0,0.00024657,7]
[345690997,1734425439976,-500.0,0.00024657,6]
[345690999,1734425439985,-2750.29,0.00024657,6]
[345691001,1734425439995,-500.0,0.00024657,6]
[345691003,1734425440006,-500.0,0.00024657,6]
[345691005,1734425440016,-681.759088,0.00024657,7]
[345691007,1734425440025,-681.759088,0.00024657,7]
[345691009,1734425440034,-681.759088,0.00024657,7]
[345691010,1734425440044,-500.0,0.00024657,6]
[345691012,1734425440053,-571.4017834,0.00024657,6]
[345691013,1734425440063,-454.3551317,0.00024657,6]
[345691014,1734425440073,-4791.386794,0.00024657,7]
[345691015,1734425440082,-4791.386794,0.00024657,7]
[345691016,1734425440091,-500.0,0.00024657,6]
[345691017,1734425440100,-1000.0,0.00024657,2]
[345691018,1734425440110,-500.0,0.00024657,6]
[345691019,1734425440119,-4791.386794,0.00024657,7]
[345691020,1734425440128,-4791.386794,0.00024657,7]
[345691021,1734425440143,-500.0,0.00024657,6]
[345691022,1734425440152,-500.0,0.00024657,6]
[345691023,1734425440161,-500.0,0.00024657,6]
[345691024,1734425440170,-500.0,0.00024657,6]
[345691025,1734425440179,-500.0,0.00024657,6]
[345691026,1734425440189,-151.0,0.00024657,7]
[345691027,1734425440198,-500.0,0.00024657,6]
[345691028,1734425440207,-151.0,0.00024657,7]
[345691029,1734425440217,-500.0,0.00024657,6]
[345691030,1734425440226,-500.0,0.00024657,6]
[345691031,1734425440235,-506.66503815,0.00024657,6]
[345691032,1734425440245,-151.0,0.00024657,7]
[345691033,1734425440254,-151.0,0.00024657,7]
[345691034,1734425440263,-502.9883302,0.00024657,6]
[345691035,1734425440272,-500.0,0.00024657,6]
[345691036,1734425440282,-533.15,0.00024657,6]
[345691037,1734425440291,-151.0,0.00024657,7]
[345691038,1734425440300,-154.888942,0.00024657,7]
[345691039,1734425440310,-500.0,0.00024657,6]
[345691040,1734425440319,-500.0,0.00024657,6]
[345691041,1734425440329,-9848.96,0.00024657,6]
[345691042,1734425440339,-500.0,0.00024657,6]
[345691044,1734425440348,-500.0,0.00024657,6]
[345691046,1734425440358,-500.0,0.00024657,6]
[345691047,1734425440368,-500.0,0.00024657,6]
[345691050,1734425440377,-500.0,0.00024657,6]
[345691052,1734425440389,-1209.14,0.00024657,6]
[345691053,1734425440398,-500.0,0.00024657,6]
[345691056,1734425440413,-500.0,0.00024657,6]
[345691058,1734425440422,-500.0,0.00024657,6]
[345691072,1734425440551,-500.0,0.00024657,6]
[345691074,1734425440560,-1034.10644,0.00024657,7]
[345691076,1734425440569,-1034.10644,0.00024657,7]
[345691078,1734425440578,-500.0,0.00024657,6]
[345691080,1734425440588,-1946.88,0.00024657,6]
[345691082,1734425440600,-767.04,0.00024657,6]
[345691084,1734425440609,-620.40487229,0.00024657,6]
[345691087,1734425440623,-500.0,0.00024657,6]
[345691089,1734425440634,-1772.16,0.00024657,6]
[345691091,1734425440644,-500.0,0.00024657,6]
[345691093,1734425440654,-1034.10644,0.00024657,7]
[345691095,1734425440669,-500.0,0.00024657,6]
[345691097,1734425440679,-1034.10644,0.00024657,7]
[345691099,1734425440688,-7645.04,0.00024657,6]
[345691101,1734425440699,-500.0,0.00024657,6]
[345691103,1734425440708,-500.0,0.00024657,6]
[345691105,1734425440718,-501.67013662,0.00024657,6]
[345691107,1734425440727,-500.0,0.00024657,6]
[345691109,1734425440737,-500.0,0.00024657,6]
[345691111,1734425440746,-500.0,0.00024657,6]
[345691113,1734425440756,-504.51284964,0.00024657,6]
[345691115,1734425440765,-501.06736431,0.00024657,6]
[345691117,1734425440774,-500.0,0.00024657,6]
[345691119,1734425440784,-500.0,0.00024657,6]
[345691121,1734425440793,-1597.26,0.00024657,6]
[345691122,1734425440802,-797.56,0.00024657,6]
[345691125,1734425440811,-503.31158305,0.00024657,6]
[345691127,1734425440821,-500.0,0.00024657,6]
[345691129,1734425440830,-500.0,0.00024657,6]
[345691131,1734425440839,-500.0,0.00024657,6]
[345691133,1734425440848,-502.42085056,0.00024657,6]
[345691134,1734425440857,-500.0,0.00024657,6]
[345691137,1734425440867,-545.67,0.00024657,6]
[345691138,1734425440876,-500.0,0.00024657,6]
[345691140,1734425440887,-500.0,0.00024657,6]
[345691143,1734425440896,-500.0,0.00024657,6]
[345691144,1734425440906,-500.0,0.00024657,6]
[345691147,1734425440915,-500.0,0.00024657,6]
[345691148,1734425440924,-1005.81,0.00024657,6]
[345691151,1734425440934,-500.0,0.00024657,6]
[345691153,1734425440943,-2524.67,0.00024657,6]
[345691155,1734425440952,-563.37096981,0.00024657,6]
[345691156,1734425440962,-11798.48,0.00024657,6]
[345691159,1734425440971,-500.0,0.00024657,6]
[345691161,1734425440980,-506.76171989,0.00024657,6]
[345691162,1734425440990,-500.0,0.00024657,6]
[345691164,1734425440999,-500.0,0.00024657,6]
[345691167,1734425441008,-500.0,0.00024657,6]
[345691168,1734425441017,-500.0,0.00024657,6]
[345691170,1734425441027,-500.0,0.00024657,6]
[345691172,1734425441036,-210.19020196,0.00024657,6]
[345691174,1734425441045,-500.0,0.00024657,6]
[345691176,1734425441055,-500.0,0.00024657,6]
[345691178,1734425441064,-500.0,0.00024657,6]
[345691181,1734425441074,-13005.34,0.00024657,6]
[345691182,1734425441083,-422.871451,0.00024657,7]
[345691184,1734425441092,-422.871451,0.00024657,7]
[345691186,1734425441101,-500.0,0.00024657,6]
[345691189,1734425441112,-500.0,0.00024657,6]
[345691191,1734425441122,-500.0,0.00024657,6]
[345691193,1734425441131,-500.0,0.00024657,6]
[345691195,1734425441142,-1161.3,0.00024657,6]
[345691197,1734425441152,-422.871451,0.00024657,7]
[345691199,1734425441161,-422.871451,0.00024657,7]
[345691201,1734425441170,-500.0,0.00024657,6]
[345691203,1734425441179,-1000.0,0.00024657,6]
[345691205,1734425441188,-500.0,0.00024657,6]
[345691207,1734425441198,-898.82,0.00024657,6]
[345691209,1734425441207,-2222.06,0.00024657,6]
[345691211,1734425441216,-500.0,0.00024657,6]
[345691213,1734425441225,-500.0,0.00024657,6]
[345691215,1734425441235,-500.0,0.00024657,6]
[345691217,1734425441245,-500.0,0.00024657,6]
[345691219,1734425441254,-508.2793631,0.00024657,6]
[345691221,1734425441263,-500.0,0.00024657,6]
[345691223,1734425441272,-500.0,0.00024657,6]
[345691224,1734425441281,-587.54,0.00024657,6]
[345691227,1734425441291,-500.0,0.00024657,6]
[345691229,1734425441300,-500.0,0.00024657,6]
[345691230,1734425441309,-766.57,0.00024657,6]
[345691233,1734425441319,-502.37422033,0.00024657,6]
[345691235,1734425441328,-1986.82,0.00024657,6]
[345691237,1734425441338,-165.05021587,0.00024657,6]
[345691239,1734425441347,-500.0,0.00024657,6]
[345691241,1734425441357,-500.0,0.00024657,6]
[345691243,1734425441367,-500.0,0.00024657,6]
[345691245,1734425441376,-500.0,0.00024657,6]
[345691247,1734425441387,-500.0,0.00024657,6]
[345691249,1734425441397,-500.0,0.00024657,6]
[345691251,1734425441406,-500.0,0.00024657,6]
[345691253,1734425441415,-500.0,0.00024657,6]
[345691255,1734425441425,-500.0,0.00024657,6]
[345691257,1734425441434,-2908.71,0.00024657,6]
[345691259,1734425441443,-500.0,0.00024657,6]
[345691261,1734425441452,-1835.4,0.00024657,6]
[345691263,1734425441461,-500.0,0.00024657,6]
[345691265,1734425441471,-500.0,0.00024657,6]
[345691267,1734425441481,-151.0,0.00024657,7]
[345691269,1734425441490,-500.0,0.00024657,6]
[345691271,1734425441499,-151.0,0.00024657,7]
[345691273,1734425441509,-500.0,0.00024657,6]
[345691275,1734425441519,-500.0,0.00024657,6]
[345691277,1734425441529,-500.0,0.00024657,6]
[345691279,1734425441538,-500.0,0.00024657,6]
[345691281,1734425441548,-500.0,0.00024657,6]
[345691283,1734425441558,-500.0,0.00024657,6]
[345691285,1734425441567,-500.0,0.00024657,6]
[345691287,1734425441577,-500.0,0.00024657,6]
[345691289,1734425441587,-500.0,0.00024657,6]
[345691291,1734425441596,-1590.67,0.00024657,6]
[345691293,1734425441606,-151.0,0.00024657,7]
[345691295,1734425441616,-151.0,0.00024657,7]
[345691297,1734425441624,-1447.05,0.00024657,6]
[345691299,1734425441634,-500.0,0.00024657,6]
[345691301,1734425441646,-500.0,0.00024657,6]
[345691303,1734425441655,-500.0,0.00024657,6]
[345691305,1734425441664,-151.0,0.00024657,7]
[345691307,1734425441674,-566.60845029,0.00024657,6]
[345691308,1734425441684,-151.0,0.00024657,7]
[345691310,1734425441694,-500.0,0.00024657,6]
[345691312,1734425441703,-19653.15,0.00024657,6]
[345691313,1734425441715,-500.0,0.00024657,6]
[345691314,1734425441724,-500.0,0.00024657,6]
[345691315,1734425441733,-500.0,0.00024657,6]
[345691316,1734425441742,-500.0,0.00024657,6]
[345691317,1734425441751,-500.0,0.00024657,6]
[345691318,1734425441761,-500.0,0.00024657,6]
[345691319,1734425441770,-500.0,0.00024657,2]
[345691320,1734425441779,-500.0,0.00024657,6]
[345691321,1734425441789,-500.0,0.00024657,6]
[345691322,1734425441798,-500.0,0.00024657,6]
[345691323,1734425441807,-500.0,0.00024657,6]
[345691324,1734425441816,-500.0,0.00024657,6]
[345691325,1734425441825,-500.0,0.00024657,6]
[345691326,1734425441835,-500.0,0.00024657,6]
[345691327,1734425441844,-500.0,0.00024657,6]
[345691328,1734425441853,-500.0,0.00024657,6]
[345691329,1734425441863,-500.0,0.00024657,6]
[345691330,1734425441872,-2231.36,0.00024657,6]
[345691331,1734425441881,-265.47913517,0.00024657,6]
[345691332,1734425441893,-500.0,0.00024657,6]
[345691333,1734425441902,-500.0,0.00024657,6]
[345691334,1734425441911,-500.0,0.00024657,6]
[345691335,1734425441920,-500.0,0.00024657,6]
[345691336,1734425441930,-500.0,0.00024657,6]
[345691337,1734425441939,-500.0,0.00024657,6]
[345691338,1734425441949,-500.0,0.00024657,6]
[345691339,1734425441958,-511.08,0.00024657,6]
[345691340,1734425441967,-501.53955039,0.00024657,6]
[345691341,1734425441976,-674.27,0.00024657,6]
[345691342,1734425441985,-519.94,0.00024657,6]
[345691343,1734425441994,-786.6,0.00024657,6]
[345691344,1734425442003,-151.0,0.00024657,7]
[345691345,1734425442013,-1619.42,0.00024657,6]
[345691346,1734425442022,-151.0,0.00024657,7]
[345691347,1734425442031,-151.0,0.00024657,7]
[345691348,1734425442040,-505.40492825,0.00024657,6]
[345691349,1734425442049,-508.89144588,0.00024657,6]
[345691350,1734425442058,-500.0,0.00024657,6]
[345691351,1734425442067,-1741.45,0.00024657,6]
[345691352,1734425442077,-500.0,0.00024657,6]
[345691353,1734425442086,-502.290871,0.00024657,6]
[345691354,1734425442095,-500.0,0.00024657,6]
[345691355,1734425442105,-640.57,0.00024657,6]
[345691356,1734425442114,-500.0,0.00024657,6]
[345691357,1734425442123,-151.0,0.00024657,7]
[345691358,1734425442133,-151.0,0.00024657,7]
[345691359,1734425442144,-3147.67,0.00024657,6]
[345691360,1734425442154,-339.519478,0.00024657,7]
[345691361,1734425442163,-339.519478,0.00024657,7]
[345691362,1734425442173,-151.0,0.00024657,7]
[345691363,1734425442182,-151.0,0.00024657,7]
[345691364,1734425442191,-500.0,0.00024657,6]
[345691365,1734425442200,-500.0,0.00024657,6]
[345691366,1734425442210,-500.0,0.00024657,6]
[345691367,1734425442219,-500.0,0.00024657,6]
[345691368,1734425442228,-500.0,0.00024657,6]
[345691369,1734425442237,-339.519478,0.00024657,7]
[345691370,1734425442246,-500.0,0.00024657,6]
[345691371,1734425442255,-339.519478,0.00024657,7]
[345691372,1734425442265,-502.32978174,0.00024657,6]
[345691373,1734425442274,-500.0,0.00024657,6]
[345691374,1734425442283,-246.329835,0.00024657,7]
[345691375,1734425442293,-246.329835,0.00024657,7]
[345691376,1734425442303,-500.0,0.00024657,6]
[345691377,1734425442312,-200.0,0.00024657,6]
[345691378,1734425442322,-533.9643158,0.00024657,6]
[345691379,1734425442332,-246.329835,0.00024657,7]
[345691380,1734425442341,-246.329835,0.00024657,7]
[345691381,1734425442351,-500.0,0.00024657,6]
[345691382,1734425442360,-500.0,0.00024657,6]
[345691383,1734425442370,-500.0,0.00024657,6]
[345691384,1734425442379,-500.0,0.00024657,6]
[345691385,1734425442390,-500.0,0.00024657,6]
[345691386,1734425442402,-500.0,0.00024657,6]
[345691387,1734425442413,-508.57801763,0.00024657,6]
[345691388,1734425442422,-2994.03,0.00024657,6]
[345691389,1734425442432,-500.0,0.00024657,6]
[345691390,1734425442442,-500.0,0.00024657,6]
[345691391,1734425442451,-520.92,0.00024657,6]
[345691392,1734425442461,-993.66,0.00024657,6]
[345691393,1734425442470,-785.03,0.00024657,6]
[345691394,1734425442480,-500.0,0.00024657,6]
[345691395,1734425442489,-500.0,0.00024657,6]
[345691396,1734425442499,-500.0,0.00024657,6]
[345691397,1734425442508,-580.62494791,0.00024657,6]
[345691398,1734425442518,-6877.67,0.00024657,6]
[345691399,1734425442527,-500.0,0.00024657,6]
[345691400,1734425442536,-1814.14,0.00024657,6]
[345691401,1734425442546,-500.0,0.00024657,6]
[345691402,1734425442555,-500.0,0.00024657,6]
[345691403,1734425442564,-500.0,0.00024657,6]
[345691404,1734425442573,-503.04174113,0.00024657,6]
[345691405,1734425442583,-1200.6,0.00024657,6]
[345691406,1734425442592,-500.0,0.00024657,6]
[345691407,1734425442601,-500.0,0.00024657,6]
[345691408,1734425442610,-500.0,0.00024657,6]
[345691410,1734425442730,-500.0,0.00024657,6]
[345691411,1734425442740,-2708.04,0.00024657,6]
[345691412,1734425442749,-500.0,0.00024657,6]
[345691413,1734425442758,-16840.02,0.00024657,5]
[345691414,1734425442767,-500.0,0.00024657,6]
[345691415,1734425442776,-500.0,0.00024657,6]
[345691416,1734425442786,-500.0,0.00024657,6]
[345691417,1734425442795,-500.0,0.00024657,6]
[345691419,1734425442804,-500.0,0.00024657,6]
[345691421,1734425442814,-1033.64,0.00024657,6]
[345691422,1734425442823,-500.0,0.00024657,6]
[345691423,1734425442833,-860.74,0.00024657,6]
[345691424,1734425442843,-500.0,0.00024657,6]
[345691425,1734425442852,-500.0,0.00024657,6]
[345691427,1734425442861,-508.44509092,0.00024657,6]
[345691429,1734425442870,-2022.44,0.00024657,6]
[345691430,1734425442880,-500.0,0.00024657,6]
[345691431,1734425442891,-49051.97,0.00024657,6]
[345691433,1734425442901,-500.0,0.00024657,6]
[345691434,1734425442910,-500.0,0.00024657,6]
[345691435,1734425442920,-500.0,0.00024657,6]
[345691436,1734425442936,-500.0,0.00024657,6]
[345691437,1734425442948,-500.0,0.00024657,6]
[345691438,1734425442957,-1256.94,0.00024657,6]
[345691439,1734425442967,-3068.04,0.00024657,6]
[345691440,1734425442984,-500.0,0.00024657,6]
[345691441,1734425443000,-500.0,0.00024657,6]
[345691442,1734425443009,-500.0,0.00024657,6]
[345691443,1734425443018,-500.0,0.00024657,6]
[345691445,1734425443028,-500.0,0.00024657,6]
[345691447,1734425443037,-500.0,0.00024657,6]
[345691449,1734425443048,-500.0,0.00024657,6]
[345691451,1734425443057,-151.0,0.00024657,7]
[345691453,1734425443067,-500.0,0.00024657,6]
[345691455,1734425443077,-530.72694237,0.00024657,6]
[345691457,1734425443086,-500.0,0.00024657,6]
[345691459,1734425443096,-151.0,0.00024657,7]
[345691461,1734425443105,-500.0,0.00024657,6]
[345691463,1734425443115,-151.0,0.00024657,7]
[345691465,1734425443124,-500.0,0.00024657,6]
[345691467,1734425443134,-500.0,0.00024657,6]
[345691469,1734425443157,-549.32498102,0.00024657,6]
[345691471,1734425443167,-283.96017172,0.00024657,6]
[345691472,1734425443176,-500.0,0.00024657,2]